[Event "Titled Tuesday Blitz February 14 Early 2023"]
[White "Manukian, Artak"]
[Black "Demin, Vladimir"]
[WhiteFideId "13301373"]
[BlackFideId "4167457"]
[WhiteElo "2196"]
[BlackElo "2430"]
[Result "1/2-1/2"]
[Round "07"]
[TimeControl "180+2"]
[Date "2023.02.15"]
[WhiteClock "0:00:04"]
[BlackClock "0:00:34"]

1. e4 {[%clk 0:02:56]}  e5 {[%clk 0:02:59]} 2. Nf3 {[%clk 0:02:55]}  Nc6 {[%clk 0:02:57]} 3. d4 {[%clk 0:02:55]}  exd4 {[%clk 0:02:58]} 4. Nxd4 {[%clk 0:02:56]}  Bb4+ {[%clk 0:02:57]} 5. c3 {[%clk 0:02:56]}  Bc5 {[%clk 0:02:57]} 6. Nxc6 {[%clk 0:02:53]}  bxc6 {[%clk 0:02:54]} 7. Bc4 {[%clk 0:02:50]}  Ne7 {[%clk 0:02:47]} 8. Bxf7+ {[%clk 0:02:47]}  Kxf7 {[%clk 0:02:40]} 9. Qh5+ {[%clk 0:02:47]}  Ng6 {[%clk 0:02:40]} 10. Qxc5 {[%clk 0:02:47]}  d6 {[%clk 0:02:39]} 11. Qxc6 {[%clk 0:02:45]}  Be6 {[%clk 0:02:35]} 12. O-O {[%clk 0:02:43]}  Rf8 {[%clk 0:02:32]} 13. f4 {[%clk 0:02:23]}  Ne7 {[%clk 0:02:27]} 14. Qa4 {[%clk 0:02:19]}  g6 {[%clk 0:02:25]} 15. Nd2 {[%clk 0:01:56]}  d5 {[%clk 0:02:22]} 16. Nf3 {[%clk 0:01:54]}  Kg8 {[%clk 0:02:19]} 17. Ng5 {[%clk 0:01:50]}  Qd6 {[%clk 0:02:16]} 18. e5 {[%clk 0:01:37]}  Qb6+ {[%clk 0:02:13]} 19. Kh1 {[%clk 0:01:28]}  Nf5 {[%clk 0:02:11]} 20. b4 {[%clk 0:01:03]}  a5 {[%clk 0:02:08]} 21. b5 {[%clk 0:01:00]}  c5 {[%clk 0:02:04]} 22. bxc6 {[%clk 0:00:57]}  Rfe8 {[%clk 0:01:58]} 23. Ba3 {[%clk 0:00:46]}  h6 {[%clk 0:01:54]} 24. Rab1 {[%clk 0:00:39]}  Qc7 {[%clk 0:01:49]} 25. Rb7 {[%clk 0:00:34]}  Qc8 {[%clk 0:01:46]} 26. Nxe6 {[%clk 0:00:24]}  Rxe6 {[%clk 0:01:47]} 27. Qb5 {[%clk 0:00:18]}  Qxc6 {[%clk 0:01:45]} 28. Rb8+ {[%clk 0:00:18]}  Rxb8 {[%clk 0:01:44]} 29. Qxb8+ {[%clk 0:00:18]}  Kh7 {[%clk 0:01:42]} 30. Qf8 {[%clk 0:00:16]}  Qb5 {[%clk 0:01:36]} 31. Qf7+ {[%clk 0:00:14]}  Ng7 {[%clk 0:01:36]} 32. Rg1 {[%clk 0:00:14]}  Rb6 {[%clk 0:01:15]} 33. e6 {[%clk 0:00:11]}  Qe8 {[%clk 0:01:07]} 34. Qxe8 {[%clk 0:00:08]}  Nxe8 {[%clk 0:01:08]} 35. e7 {[%clk 0:00:08]}  Kg7 {[%clk 0:01:07]} 36. Rd1 {[%clk 0:00:08]}  Kf7 {[%clk 0:01:03]} 37. g3 {[%clk 0:00:09]}  Rc6 {[%clk 0:01:02]} 38. Rxd5 {[%clk 0:00:08]}  Rxc3 {[%clk 0:01:02]} 39. Rxa5 {[%clk 0:00:09]}  Rc2 {[%clk 0:01:00]} 40. f5 {[%clk 0:00:08]}  Rxa2 {[%clk 0:00:53]} 41. fxg6+ {[%clk 0:00:07]}  Kxg6 {[%clk 0:00:54]} 42. Bb4 {[%clk 0:00:07]}  Rb2 {[%clk 0:00:51]} 43. Bc3 {[%clk 0:00:06]}  Rc2 {[%clk 0:00:48]} 44. Be5 {[%clk 0:00:04]}  Kf7 {[%clk 0:00:47]} 45. Ra7 {[%clk 0:00:04]}  Re2 {[%clk 0:00:47]} 46. Bf4 {[%clk 0:00:04]}  h5 {[%clk 0:00:45]} 47. Kg1 {[%clk 0:00:04]}  Rxe7 {[%clk 0:00:45]} 48. Rxe7+ {[%clk 0:00:04]}  Kxe7 {[%clk 0:00:46]} 49. Kg2 {[%clk 0:00:05]}  Ke6 {[%clk 0:00:46]} 50. Kh3 {[%clk 0:00:05]}  Kf5 {[%clk 0:00:47]} 51. Kh4 {[%clk 0:00:04]}  Kg6 {[%clk 0:00:47]} 52. Be5 {[%clk 0:00:04]}  Kf5 {[%clk 0:00:44]} 53. Ba1 {[%clk 0:00:03]}  Kg6 {[%clk 0:00:43]} 54. Be5 {[%clk 0:00:02]}  Kf5 {[%clk 0:00:43]} 55. Kxh5 {[%clk 0:00:03]}  Kxe5 {[%clk 0:00:43]} 56. g4 {[%clk 0:00:03]}  Kf6 {[%clk 0:00:43]} 57. g5+ {[%clk 0:00:03]}  Kf7 {[%clk 0:00:43]} 58. Kh6 {[%clk 0:00:03]}  Kg8 {[%clk 0:00:41]} 59. h4 {[%clk 0:00:03]}  Nd6 {[%clk 0:00:41]} 60. h5 {[%clk 0:00:03]}  Nf5+ {[%clk 0:00:39]} 61. Kg6 {[%clk 0:00:03]}  Ne7+ {[%clk 0:00:38]} 62. Kf6 {[%clk 0:00:03]}  Nd5+ {[%clk 0:00:39]} 63. Kf5 {[%clk 0:00:03]}  Ne7+ {[%clk 0:00:38]} 64. Kf6 {[%clk 0:00:04]}  Nd5+ {[%clk 0:00:38]} 65. Ke5 {[%clk 0:00:04]}  Ne7 {[%clk 0:00:36]} 66. g6 {[%clk 0:00:04]}  Kg7 {[%clk 0:00:34]} 67. Ke6 {[%clk 0:00:04]}  Nxg6 {[%clk 0:00:33]} 68. hxg6 {[%clk 0:00:04]}  Kxg6 {[%clk 0:00:34]} 1/2-1/2


[Site "https://www.chess.com"]

[Event "Titled Tuesday Blitz February 14 Early 2023"]
[White "Bochnicka, Vladimir"]
[Black "Sourath Biswas"]
[WhiteFideId "14943450"]
[BlackFideId "35091484"]
[WhiteElo "2327"]
[BlackElo "2281"]
[Result "1-0"]
[Round "07"]
[TimeControl "180+2"]
[Date "2023.02.15"]
[WhiteClock "0:00:08"]
[BlackClock "0:00:09"]

1. e4 {[%clk 0:03:00]}  c6 {[%clk 0:03:00]} 2. d4 {[%clk 0:03:00]}  d5 {[%clk 0:03:01]} 3. e5 {[%clk 0:03:01]}  Bf5 {[%clk 0:03:01]} 4. h4 {[%clk 0:03:02]}  h5 {[%clk 0:03:01]} 5. c4 {[%clk 0:03:02]}  e6 {[%clk 0:03:01]} 6. Nc3 {[%clk 0:03:03]}  Bb4 {[%clk 0:03:02]} 7. Bg5 {[%clk 0:02:57]}  Qb6 {[%clk 0:02:53]} 8. Nf3 {[%clk 0:02:55]}  Nh6 {[%clk 0:02:48]} 9. Bxh6 {[%clk 0:02:45]}  Rxh6 {[%clk 0:02:49]} 10. c5 {[%clk 0:02:46]}  Qc7 {[%clk 0:02:49]} 11. Bd3 {[%clk 0:02:41]}  Bg4 {[%clk 0:02:49]} 12. Qd2 {[%clk 0:02:25]}  Bxf3 {[%clk 0:02:49]} 13. gxf3 {[%clk 0:02:26]}  Rh8 {[%clk 0:02:49]} 14. a3 {[%clk 0:02:25]}  Bxc3 {[%clk 0:02:49]} 15. Qxc3 {[%clk 0:02:26]}  Nd7 {[%clk 0:02:45]} 16. Rg1 {[%clk 0:02:26]}  Kf8 {[%clk 0:02:44]} 17. f4 {[%clk 0:02:23]}  f5 {[%clk 0:02:39]} 18. Rg5 {[%clk 0:02:02]}  Kf7 {[%clk 0:02:35]} 19. Kd2 {[%clk 0:02:01]}  Nf8 {[%clk 0:02:33]} 20. b4 {[%clk 0:01:57]}  a6 {[%clk 0:02:23]} 21. Rag1 {[%clk 0:01:54]}  g6 {[%clk 0:02:23]} 22. Rb1 {[%clk 0:01:46]}  Qd8 {[%clk 0:02:08]} 23. a4 {[%clk 0:01:35]}  Nh7 {[%clk 0:02:09]} 24. b5 {[%clk 0:01:24]}  axb5 {[%clk 0:02:10]} 25. axb5 {[%clk 0:01:24]}  Nxg5 {[%clk 0:02:06]} 26. fxg5 {[%clk 0:01:24]}  Ra7 {[%clk 0:01:42]} 27. bxc6 {[%clk 0:00:57]}  bxc6 {[%clk 0:01:43]} 28. Rb6 {[%clk 0:00:56]}  Qc7 {[%clk 0:01:44]} 29. Qb4 {[%clk 0:00:52]}  Rha8 {[%clk 0:01:44]} 30. Ke3 {[%clk 0:00:51]}  Ke7 {[%clk 0:01:44]} 31. Be2 {[%clk 0:00:44]}  Kd7 {[%clk 0:01:41]} 32. Rxc6 {[%clk 0:00:34]}  Qxc6 {[%clk 0:00:49]} 33. Bb5 {[%clk 0:00:34]}  Rb7 {[%clk 0:00:50]} 34. Bxc6+ {[%clk 0:00:34]}  Kxc6 {[%clk 0:00:51]} 35. Qd2 {[%clk 0:00:35]}  Rb3+ {[%clk 0:00:51]} 36. Ke2 {[%clk 0:00:32]}  Ra4 {[%clk 0:00:39]} 37. Qd1 {[%clk 0:00:18]}  Ra2+ {[%clk 0:00:37]} 38. Kf1 {[%clk 0:00:17]}  Rbb2 {[%clk 0:00:35]} 39. Qe1 {[%clk 0:00:16]}  Ra4 {[%clk 0:00:14]} 40. Qc3 {[%clk 0:00:11]}  Rbb4 {[%clk 0:00:13]} 41. Qe3 {[%clk 0:00:11]}  Rxd4 {[%clk 0:00:13]} 42. Qe2 {[%clk 0:00:09]}  Ra1+ {[%clk 0:00:09]} 43. Kg2 {[%clk 0:00:10]}  Rg4+ {[%clk 0:00:09]} 44. Kh2 {[%clk 0:00:09]}  Rxh4+ {[%clk 0:00:09]} 45. Kg3 {[%clk 0:00:09]}  Rg4+ {[%clk 0:00:10]} 46. Kh2 {[%clk 0:00:09]}  Rb4 {[%clk 0:00:10]} 47. Qd2 {[%clk 0:00:07]}  Rb5 {[%clk 0:00:07]} 48. Qe2 {[%clk 0:00:05]}  Rab1 {[%clk 0:00:06]} 49. Qd2 {[%clk 0:00:04]}  R1b2 {[%clk 0:00:06]} 50. Qc3 {[%clk 0:00:04]}  Rxf2+ {[%clk 0:00:06]} 51. Kg1 {[%clk 0:00:05]}  Rf4 {[%clk 0:00:07]} 52. Qa3 {[%clk 0:00:05]}  Rc4 {[%clk 0:00:05]} 53. Qa5 {[%clk 0:00:05]}  Kxc5 {[%clk 0:00:06]} 54. Qa7+ {[%clk 0:00:05]}  Kb4 {[%clk 0:00:06]} 55. Qe7+ {[%clk 0:00:06]}  Kb3 {[%clk 0:00:07]} 56. Qxe6 {[%clk 0:00:06]}  Rbb4 {[%clk 0:00:08]} 57. Qxd5 {[%clk 0:00:06]}  Kb2 {[%clk 0:00:08]} 58. e6 {[%clk 0:00:07]}  Ka2 {[%clk 0:00:08]} 59. e7 {[%clk 0:00:07]}  Ka3 {[%clk 0:00:04]} 60. e8=Q {[%clk 0:00:06]}  Rb1+ {[%clk 0:00:05]} 61. Kf2 {[%clk 0:00:06]}  Rb2+ {[%clk 0:00:06]} 62. Kf3 {[%clk 0:00:07]}  Rb3+ {[%clk 0:00:06]} 63. Ke2 {[%clk 0:00:06]}  Rb2+ {[%clk 0:00:07]} 64. Kd3 {[%clk 0:00:06]}  Ra4 {[%clk 0:00:05]} 65. Qc5+ {[%clk 0:00:05]}  Rbb4 {[%clk 0:00:04]} 66. Qee3 {[%clk 0:00:05]}  Ka2 {[%clk 0:00:04]} 67. Qd5+ {[%clk 0:00:05]}  Rb3+ {[%clk 0:00:05]} 68. Qxb3+ {[%clk 0:00:05]}  Kxb3 {[%clk 0:00:05]} 69. Ke2+ {[%clk 0:00:06]}  Kb4 {[%clk 0:00:06]} 70. Qe6 {[%clk 0:00:06]}  Ra2+ {[%clk 0:00:07]} 71. Kf3 {[%clk 0:00:06]}  Kc5 {[%clk 0:00:08]} 72. Qxg6 {[%clk 0:00:06]}  Ra3+ {[%clk 0:00:09]} 73. Kf4 {[%clk 0:00:07]}  Ra6 {[%clk 0:00:09]} 74. Qxf5+ {[%clk 0:00:07]}  Kd4 {[%clk 0:00:09]} 75. g6 {[%clk 0:00:07]}  Ra8 {[%clk 0:00:09]} 76. g7 {[%clk 0:00:08]}  Rg8 {[%clk 0:00:09]} 77. Qf7 {[%clk 0:00:08]}  Rf8 {[%clk 0:00:09]} 78. gxf8=Q {[%clk 0:00:08]} 1-0


[Site "https://www.chess.com"]

[Event "Titled Tuesday Blitz February 14 Early 2023"]
[White "Grycel, Kamil"]
[Black "Ezat, Mohamed"]
[WhiteFideId "1115499"]
[BlackFideId "10600906"]
[WhiteElo "2315"]
[BlackElo "2402"]
[Result "1-0"]
[Round "07"]
[TimeControl "180+2"]
[Date "2023.02.15"]
[WhiteClock "0:00:22"]
[BlackClock "0:00:01"]

1. b3 {[%clk 0:03:00]}  d6 {[%clk 0:02:49]} 2. Bb2 {[%clk 0:02:59]}  Nc6 {[%clk 0:02:49]} 3. Nf3 {[%clk 0:02:58]}  e5 {[%clk 0:02:48]} 4. d4 {[%clk 0:02:58]}  e4 {[%clk 0:02:48]} 5. d5 {[%clk 0:02:57]}  exf3 {[%clk 0:02:44]} 6. dxc6 {[%clk 0:02:57]}  bxc6 {[%clk 0:02:41]} 7. gxf3 {[%clk 0:02:57]}  Nf6 {[%clk 0:02:39]} 8. Qd4 {[%clk 0:02:49]}  c5 {[%clk 0:02:38]} 9. Qe3+ {[%clk 0:02:48]}  Be6 {[%clk 0:02:31]} 10. c4 {[%clk 0:02:46]}  Be7 {[%clk 0:02:28]} 11. Rg1 {[%clk 0:02:42]}  g6 {[%clk 0:02:26]} 12. Nc3 {[%clk 0:02:26]}  a5 {[%clk 0:02:22]} 13. h4 {[%clk 0:02:15]}  h5 {[%clk 0:02:17]} 14. O-O-O {[%clk 0:02:08]}  a4 {[%clk 0:02:14]} 15. Nxa4 {[%clk 0:02:02]}  Rxa4 {[%clk 0:02:13]} 16. bxa4 {[%clk 0:02:01]}  Qa8 {[%clk 0:02:13]} 17. Rxg6 {[%clk 0:01:52]}  Qxa4 {[%clk 0:01:57]} 18. Rxf6 {[%clk 0:01:17]}  Qxc4+ {[%clk 0:01:38]} 19. Kd2 {[%clk 0:00:59]}  Qxa2 {[%clk 0:01:32]} 20. Qc3 {[%clk 0:00:49]}  Bxf6 {[%clk 0:01:23]} 21. Qxf6 {[%clk 0:00:48]}  Rg8 {[%clk 0:01:23]} 22. Ra1 {[%clk 0:00:44]}  Qd5+ {[%clk 0:01:21]} 23. Ke1 {[%clk 0:00:43]}  Kd7 {[%clk 0:01:16]} 24. e4 {[%clk 0:00:38]}  Qb3 {[%clk 0:01:15]} 25. Qc3 {[%clk 0:00:37]}  Rg1 {[%clk 0:00:43]} 26. Qxb3 {[%clk 0:00:33]}  Bxb3 {[%clk 0:00:42]} 27. Kd2 {[%clk 0:00:34]}  Rh1 {[%clk 0:00:36]} 28. Bf6 {[%clk 0:00:33]}  Ke6 {[%clk 0:00:34]} 29. Bc4+ {[%clk 0:00:22]}  Bxc4 {[%clk 0:00:33]} 30. Rxh1 {[%clk 0:00:22]}  Kxf6 {[%clk 0:00:32]} 31. Rg1 {[%clk 0:00:22]}  Be6 {[%clk 0:00:01]} 32. Rg5 {[%clk 0:00:22]} 1-0


[Site "https://www.chess.com"]

[Event "Titled Tuesday Blitz February 14 Early 2023"]
[White "Golubev, Mikhail"]
[Black "Buchenau, Frank"]
[WhiteFideId "14100983"]
[BlackFideId "4604350"]
[WhiteElo "2461"]
[BlackElo "2222"]
[Result "1-0"]
[Round "07"]
[TimeControl "180+2"]
[Date "2023.02.15"]
[WhiteClock "0:00:54"]
[BlackClock "0:00:40"]

1. e4 {[%clk 0:03:00]}  e6 {[%clk 0:02:59]} 2. d4 {[%clk 0:03:00]}  d5 {[%clk 0:03:00]} 3. Nc3 {[%clk 0:03:00]}  Nf6 {[%clk 0:02:59]} 4. e5 {[%clk 0:03:00]}  Nfd7 {[%clk 0:03:00]} 5. f4 {[%clk 0:03:00]}  c5 {[%clk 0:03:00]} 6. Nf3 {[%clk 0:03:01]}  Nc6 {[%clk 0:03:00]} 7. Be3 {[%clk 0:03:01]}  a6 {[%clk 0:03:00]} 8. Qd2 {[%clk 0:02:55]}  b5 {[%clk 0:03:00]} 9. a3 {[%clk 0:02:43]}  Qa5 {[%clk 0:02:59]} 10. dxc5 {[%clk 0:02:34]}  Bxc5 {[%clk 0:02:49]} 11. Bxc5 {[%clk 0:02:24]}  Nxc5 {[%clk 0:02:50]} 12. Nd4 {[%clk 0:02:23]}  Qb6 {[%clk 0:02:42]} 13. Nxc6 {[%clk 0:02:12]}  Qxc6 {[%clk 0:02:43]} 14. Qd4 {[%clk 0:02:10]}  O-O {[%clk 0:02:39]} 15. Bd3 {[%clk 0:02:04]}  f6 {[%clk 0:02:21]} 16. exf6 {[%clk 0:01:53]}  Rxf6 {[%clk 0:02:20]} 17. O-O-O {[%clk 0:01:43]}  Bd7 {[%clk 0:02:13]} 18. Rhe1 {[%clk 0:01:38]}  Be8 {[%clk 0:01:51]} 19. g4 {[%clk 0:01:07]}  Bg6 {[%clk 0:01:45]} 20. f5 {[%clk 0:01:07]}  Nxd3+ {[%clk 0:01:31]} 21. Rxd3 {[%clk 0:01:07]}  exf5 {[%clk 0:01:31]} 22. Nxd5 {[%clk 0:01:03]}  Kh8 {[%clk 0:00:49]} 23. Nxf6 {[%clk 0:01:02]}  fxg4 {[%clk 0:00:43]} 24. Qd8+ {[%clk 0:00:55]}  Rxd8 {[%clk 0:00:40]} 25. Rxd8+ {[%clk 0:00:54]}  Be8 {[%clk 0:00:40]} 26. Rexe8+ {[%clk 0:00:54]}  Qxe8 {[%clk 0:00:40]} 27. Rxe8# {[%clk 0:00:54]} 1-0


[Site "https://www.chess.com"]

[Event "Titled Tuesday Blitz February 14 Early 2023"]
[White "Gurevich, Dmitry"]
[Black "Alinasab, Mobina"]
[WhiteFideId "2000407"]
[BlackFideId "12528897"]
[WhiteElo "2393"]
[BlackElo "2347"]
[Result "1-0"]
[Round "07"]
[TimeControl "180+2"]
[Date "2023.02.15"]
[WhiteClock "0:01:35"]
[BlackClock "0:00:03"]

1. d4 {[%clk 0:03:00]}  Nf6 {[%clk 0:02:58]} 2. c4 {[%clk 0:02:59]}  e6 {[%clk 0:02:58]} 3. Nc3 {[%clk 0:02:58]}  Bb4 {[%clk 0:02:57]} 4. a3 {[%clk 0:02:58]}  Bxc3+ {[%clk 0:02:57]} 5. bxc3 {[%clk 0:02:59]}  b6 {[%clk 0:02:56]} 6. f3 {[%clk 0:02:56]}  d5 {[%clk 0:02:50]} 7. cxd5 {[%clk 0:02:55]}  exd5 {[%clk 0:02:51]} 8. e3 {[%clk 0:02:54]}  O-O {[%clk 0:02:48]} 9. Bd3 {[%clk 0:02:54]}  c5 {[%clk 0:02:49]} 10. Ne2 {[%clk 0:02:54]}  Ba6 {[%clk 0:02:49]} 11. O-O {[%clk 0:02:51]}  Bxd3 {[%clk 0:02:48]} 12. Qxd3 {[%clk 0:02:51]}  Re8 {[%clk 0:02:49]} 13. Ng3 {[%clk 0:02:49]}  Nc6 {[%clk 0:02:48]} 14. Bb2 {[%clk 0:02:48]}  Rc8 {[%clk 0:02:26]} 15. Rad1 {[%clk 0:02:44]}  Na5 {[%clk 0:01:43]} 16. e4 {[%clk 0:02:39]}  Nc4 {[%clk 0:01:42]} 17. Bc1 {[%clk 0:02:38]}  b5 {[%clk 0:01:26]} 18. e5 {[%clk 0:02:36]}  Nd7 {[%clk 0:01:22]} 19. f4 {[%clk 0:02:34]}  Qb6 {[%clk 0:01:19]} 20. Kh1 {[%clk 0:02:30]}  cxd4 {[%clk 0:01:09]} 21. cxd4 {[%clk 0:02:29]}  a5 {[%clk 0:01:08]} 22. f5 {[%clk 0:02:29]}  Nf8 {[%clk 0:00:58]} 23. Nh5 {[%clk 0:02:21]}  Kh8 {[%clk 0:00:28]} 24. Qg3 {[%clk 0:02:17]}  g6 {[%clk 0:00:25]} 25. Bg5 {[%clk 0:02:12]}  Nd7 {[%clk 0:00:19]} 26. Nf6 {[%clk 0:02:01]}  Qc6 {[%clk 0:00:08]} 27. Qh4 {[%clk 0:01:54]}  Nf8 {[%clk 0:00:07]} 28. Bh6 {[%clk 0:01:49]}  Nd7 {[%clk 0:00:03]} 29. Bg7+ {[%clk 0:01:41]}  Kxg7 {[%clk 0:00:03]} 30. Qxh7+ {[%clk 0:01:41]}  Kf8 {[%clk 0:00:03]} 31. Nxd7+ {[%clk 0:01:39]}  Qxd7 {[%clk 0:00:03]} 32. f6 {[%clk 0:01:35]} 1-0


[Site "https://www.chess.com"]

[Event "Titled Tuesday Blitz February 14 Early 2023"]
[White "Krstulovic, Alex"]
[Black "Gimenez Aguirre, Alejo Ismael"]
[WhiteFideId "760056"]
[BlackFideId "32041667"]
[WhiteElo "2428"]
[BlackElo "2273"]
[Result "1-0"]
[Round "07"]
[TimeControl "180+2"]
[Date "2023.02.15"]
[WhiteClock "0:01:03"]
[BlackClock "0:00:11"]

1. d4 {[%clk 0:03:00]}  Nf6 {[%clk 0:02:53]} 2. Nf3 {[%clk 0:03:01]}  e6 {[%clk 0:02:52]} 3. Bf4 {[%clk 0:03:01]}  c5 {[%clk 0:02:52]} 4. e3 {[%clk 0:03:00]}  cxd4 {[%clk 0:02:51]} 5. exd4 {[%clk 0:03:00]}  Qb6 {[%clk 0:02:52]} 6. Na3 {[%clk 0:02:57]}  Nd5 {[%clk 0:02:47]} 7. Nc4 {[%clk 0:02:56]}  Qc6 {[%clk 0:02:25]} 8. Nfe5 {[%clk 0:02:49]}  Qc7 {[%clk 0:02:09]} 9. Bg3 {[%clk 0:02:50]}  d6 {[%clk 0:02:07]} 10. Nf3 {[%clk 0:02:44]}  b5 {[%clk 0:02:07]} 11. Ncd2 {[%clk 0:02:43]}  a6 {[%clk 0:02:04]} 12. Bd3 {[%clk 0:02:42]}  Nc6 {[%clk 0:02:03]} 13. O-O {[%clk 0:02:43]}  Bb7 {[%clk 0:02:03]} 14. Re1 {[%clk 0:02:43]}  Be7 {[%clk 0:02:02]} 15. c4 {[%clk 0:02:34]}  bxc4 {[%clk 0:01:54]} 16. Nxc4 {[%clk 0:02:35]}  Nb6 {[%clk 0:01:54]} 17. Nxb6 {[%clk 0:02:31]}  Qxb6 {[%clk 0:01:55]} 18. d5 {[%clk 0:02:32]}  Nd8 {[%clk 0:01:44]} 19. Qa4+ {[%clk 0:02:27]}  Kf8 {[%clk 0:01:40]} 20. dxe6 {[%clk 0:02:22]}  fxe6 {[%clk 0:01:38]} 21. Qf4+ {[%clk 0:02:19]}  Ke8 {[%clk 0:01:29]} 22. Ng5 {[%clk 0:02:18]}  Bd5 {[%clk 0:01:16]} 23. Bxh7 {[%clk 0:02:12]}  Qxb2 {[%clk 0:01:09]} 24. Rab1 {[%clk 0:02:04]}  Qf6 {[%clk 0:01:08]} 25. Qxf6 {[%clk 0:01:38]}  gxf6 {[%clk 0:01:05]} 26. Bg6+ {[%clk 0:01:39]}  Kd7 {[%clk 0:01:06]} 27. Ne4 {[%clk 0:01:38]}  f5 {[%clk 0:01:02]} 28. Nc3 {[%clk 0:01:36]}  Bc4 {[%clk 0:00:53]} 29. Rbc1 {[%clk 0:01:13]}  Rh6 {[%clk 0:00:51]} 30. Na4 {[%clk 0:01:10]}  Rb8 {[%clk 0:00:30]} 31. Bxf5 {[%clk 0:01:06]}  Rb4 {[%clk 0:00:23]} 32. Rxc4 {[%clk 0:01:03]}  Rxc4 {[%clk 0:00:11]} 33. Nb6+ {[%clk 0:01:03]}  Ke8 {[%clk 0:00:12]} 34. Nxc4 {[%clk 0:01:01]}  exf5 {[%clk 0:00:12]} 35. Nxd6+ {[%clk 0:01:02]}  Kd7 {[%clk 0:00:12]} 36. Rxe7+ {[%clk 0:01:02]}  Kxe7 {[%clk 0:00:11]} 37. Nxf5+ {[%clk 0:01:03]} 1-0


[Site "https://www.chess.com"]

[Event "Titled Tuesday Blitz February 14 Early 2023"]
[White "Lucassen, Mickey"]
[Black "Ansh M Shah"]
[WhiteFideId "12919110"]
[BlackFideId "25033379"]
[WhiteElo "2023"]
[BlackElo "2171"]
[Result "1-0"]
[Round "07"]
[TimeControl "180+2"]
[Date "2023.02.15"]
[WhiteClock "0:00:26"]
[BlackClock "0:00:08"]

1. e4 {[%clk 0:03:00]}  c6 {[%clk 0:02:59]} 2. d4 {[%clk 0:03:00]}  d5 {[%clk 0:03:00]} 3. e5 {[%clk 0:03:00]}  Bf5 {[%clk 0:03:00]} 4. h4 {[%clk 0:03:00]}  h5 {[%clk 0:03:00]} 5. Bg5 {[%clk 0:03:00]}  Qb6 {[%clk 0:02:59]} 6. Bd3 {[%clk 0:03:01]}  Bxd3 {[%clk 0:02:58]} 7. Qxd3 {[%clk 0:03:01]}  e6 {[%clk 0:02:58]} 8. Nd2 {[%clk 0:03:00]}  Qa6 {[%clk 0:02:56]} 9. c4 {[%clk 0:03:00]}  Ne7 {[%clk 0:02:56]} 10. Ne2 {[%clk 0:02:50]}  Nd7 {[%clk 0:02:39]} 11. O-O {[%clk 0:02:46]}  dxc4 {[%clk 0:02:07]} 12. Nxc4 {[%clk 0:02:45]}  Nd5 {[%clk 0:02:04]} 13. b3 {[%clk 0:02:33]}  b5 {[%clk 0:01:55]} 14. Nd2 {[%clk 0:02:20]}  c5 {[%clk 0:01:51]} 15. a4 {[%clk 0:02:13]}  Nb4 {[%clk 0:01:37]} 16. Qe4 {[%clk 0:02:11]}  Rc8 {[%clk 0:01:25]} 17. axb5 {[%clk 0:02:08]}  Qxb5 {[%clk 0:01:26]} 18. Rxa7 {[%clk 0:02:07]}  cxd4 {[%clk 0:01:17]} 19. Nc4 {[%clk 0:01:55]}  Qd5 {[%clk 0:01:09]} 20. Qxd4 {[%clk 0:01:37]}  Qxd4 {[%clk 0:00:49]} 21. Nxd4 {[%clk 0:01:38]}  Bc5 {[%clk 0:00:49]} 22. Nd6+ {[%clk 0:01:29]}  Bxd6 {[%clk 0:00:46]} 23. exd6 {[%clk 0:01:29]}  Nb6 {[%clk 0:00:12]} 24. Rb7 {[%clk 0:01:18]}  N4d5 {[%clk 0:00:08]} 25. Nb5 {[%clk 0:01:03]}  O-O {[%clk 0:00:07]} 26. d7 {[%clk 0:01:02]}  Nxd7 {[%clk 0:00:07]} 27. Rxd7 {[%clk 0:01:02]}  Rb8 {[%clk 0:00:08]} 28. Nd4 {[%clk 0:00:57]}  Rb4 {[%clk 0:00:08]} 29. Rd1 {[%clk 0:00:50]}  Rc8 {[%clk 0:00:05]} 30. Rd3 {[%clk 0:00:37]}  Ra8 {[%clk 0:00:04]} 31. Nc6 {[%clk 0:00:36]}  Ra1+ {[%clk 0:00:03]} 32. Kh2 {[%clk 0:00:36]}  Rb6 {[%clk 0:00:03]} 33. Ne7+ {[%clk 0:00:36]}  Nxe7 {[%clk 0:00:04]} 34. Rxe7 {[%clk 0:00:35]}  Ra8 {[%clk 0:00:02]} 35. Rdd7 {[%clk 0:00:31]}  Rf8 {[%clk 0:00:03]} 36. Rb7 {[%clk 0:00:31]}  Rxb7 {[%clk 0:00:03]} 37. Rxb7 {[%clk 0:00:32]}  f6 {[%clk 0:00:03]} 38. Be3 {[%clk 0:00:33]}  Rc8 {[%clk 0:00:02]} 39. b4 {[%clk 0:00:33]}  Rc4 {[%clk 0:00:02]} 40. g3 {[%clk 0:00:29]}  Kh7 {[%clk 0:00:02]} 41. b5 {[%clk 0:00:29]}  Rb4 {[%clk 0:00:02]} 42. b6 {[%clk 0:00:29]}  Kg6 {[%clk 0:00:03]} 43. Rc7 {[%clk 0:00:26]}  Kf5 {[%clk 0:00:02]} 44. b7 {[%clk 0:00:26]}  g5 {[%clk 0:00:02]} 45. Ba7 {[%clk 0:00:27]}  gxh4 {[%clk 0:00:01]} 46. b8=Q {[%clk 0:00:27]}  Rxb8 {[%clk 0:00:01]} 47. Bxb8 {[%clk 0:00:27]}  hxg3+ {[%clk 0:00:02]} 48. Kxg3 {[%clk 0:00:27]}  e5 {[%clk 0:00:01]} 49. Kh4 {[%clk 0:00:27]}  Ke4 {[%clk 0:00:02]} 50. Kxh5 {[%clk 0:00:27]}  f5 {[%clk 0:00:03]} 51. Kg5 {[%clk 0:00:27]}  f4 {[%clk 0:00:04]} 52. Re7 {[%clk 0:00:27]}  Kf3 {[%clk 0:00:05]} 53. Bxe5 {[%clk 0:00:27]}  Kxf2 {[%clk 0:00:06]} 54. Bxf4 {[%clk 0:00:27]}  Kf3 {[%clk 0:00:07]} 55. Re3+ {[%clk 0:00:27]}  Kf2 {[%clk 0:00:08]} 56. Kg4 {[%clk 0:00:27]}  Kg2 {[%clk 0:00:08]} 57. Re2+ {[%clk 0:00:28]}  Kf1 {[%clk 0:00:09]} 58. Kf3 {[%clk 0:00:28]}  Kg1 {[%clk 0:00:09]} 59. Ra2 {[%clk 0:00:25]}  Kh1 {[%clk 0:00:08]} 60. Ra1# {[%clk 0:00:26]} 1-0


[Site "https://www.chess.com"]